bitfinex-derivatives/quotes_BTCF0:USTF0_20260221
["timestamp","ask_amount","ask_price","bid_price","bid_amount"]
[1771661424513,0.029448,67934.0,67926.0,0.014726]
[1771661424716,0.014724,67933.0,67926.0,0.014726]
[1771661425414,0.014724,67933.0,67926.0,0.029452]
[1771661425914,0.014725,67932.0,67926.0,0.029452]
[1771661426815,0.02945,67932.0,67926.0,0.014726]
[1771661427421,0.02945,67932.0,67926.0,0.029452]
[1771661427717,0.014725,67930.0,67926.0,0.014726]
[1771661428320,0.014725,67931.0,67926.0,0.014726]
[1771661428518,0.014725,67931.0,67926.0,0.029452]
[1771661428720,0.014725,67931.0,67927.0,0.014726]
[1771661429319,0.014724,67934.0,67927.0,0.014726]
[1771661430414,0.014724,67934.0,67929.0,0.014725]
[1771661430617,0.014723,67939.0,67929.0,0.014725]
[1771661430815,0.2020897,67938.0,67929.0,0.014725]
[1771661431016,0.2020897,67937.0,67929.0,0.014725]
[1771661431220,0.014723,67939.0,67929.0,0.014725]
[1771661431522,0.2020941,67938.0,67929.0,0.014725]
[1771661431721,0.2020941,67937.0,67929.0,0.014725]
[1771661431921,0.014723,67939.0,67929.0,0.014725]
[1771661432122,0.2020897,67938.0,67929.0,0.014725]
[1771661432425,0.2020897,67937.0,67931.0,0.014725]
[1771661432623,0.014723,67939.0,67931.0,0.014725]
[1771661432817,0.20208967,67938.0,67931.0,0.014725]
[1771661433009,0.20208967,67937.0,67931.0,0.014725]
[1771661433215,0.20210213,67936.0,67931.0,0.014725]
[1771661433423,0.014723,67939.0,67931.0,0.014725]
[1771661433625,0.20210213,67938.0,67931.0,0.02945]
[1771661433826,0.20210213,67937.0,67931.0,0.02945]
[1771661434132,0.20210213,67936.0,67931.0,0.02945]
[1771661434327,0.014723,67940.0,67933.0,0.014724]
[1771661434520,0.20211586,67939.0,67934.0,0.014724]
[1771661434722,0.20211586,67938.0,67934.0,0.014724]
[1771661435026,0.20211586,67937.0,67928.0,0.014725]
[1771661435323,0.014722,67944.0,67937.0,0.014723]
[1771661435513,0.014722,67945.0,67938.0,0.014723]
[1771661435926,0.014722,67946.0,67938.0,0.014723]
[1771661436321,0.014721,67947.0,67938.0,0.014723]
[1771661436526,0.014721,67947.0,67938.0,0.029446]
[1771661436724,0.014721,67948.0,67939.0,0.014723]
[1771661437329,0.014721,67947.0,67938.0,0.014723]
[1771661437528,0.014722,67946.0,67938.0,0.014723]
[1771661438128,0.014721,67947.0,67938.0,0.014723]
[1771661438318,0.014721,67946.0,67937.0,0.014723]
[1771661439426,0.014721,67946.0,67931.0,0.014725]
[1771661439427,0.014722,67945.0,67931.0,0.014725]
[1771661440137,0.014721,67947.0,67932.0,0.014724]
[1771661440334,0.014721,67949.0,67934.0,0.014724]
[1771661440531,0.014721,67948.0,67934.0,0.014724]
[1771661440833,0.014721,67947.0,67934.0,0.014724]
[1771661441234,0.014722,67946.0,67934.0,0.014724]
[1771661442332,0.014721,67947.0,67934.0,0.014724]
[1771661442333,0.014722,67945.0,67934.0,0.014724]
[1771661443535,0.014722,67943.0,67934.0,0.014724]
[1771661448236,0.01472,67952.0,67934.0,0.014724]
[1771661448635,0.01472,67952.0,67934.0,0.23982065]
[1771661449037,0.014722,67944.0,67935.0,0.014724]
[1771661451138,0.014722,67943.0,67934.0,0.23982065]
[1771661452340,0.014722,67943.0,67934.0,0.014724]
[1771661456648,0.014722,67944.0,67934.0,0.014724]
[1771661456942,0.014722,67943.0,67934.0,0.014724]
[1771661457941,0.014722,67942.0,67933.0,0.014724]
[1771661458141,0.014722,67946.0,67933.0,0.014724]
[1771661458441,0.014723,67941.0,67933.0,0.014724]
[1771661460343,0.014723,67940.0,67933.0,0.014724]
[1771661460534,0.014723,67940.0,67932.0,0.014724]
[1771661461145,0.014723,67940.0,67933.0,0.014724]
[1771661461440,0.014723,67940.0,67931.0,0.014725]
[1771661461441,0.014723,67941.0,67928.0,0.014725]
[1771661461645,0.014723,67938.0,67931.0,0.014725]
[1771661461845,0.014723,67939.0,67932.0,0.014724]
[1771661462437,0.014723,67939.0,67932.0,0.029448]
[1771661463347,0.014723,67941.0,67932.0,0.014724]
[1771661463645,0.014723,67941.0,67934.0,0.014724]
[1771661463845,0.014723,67940.0,67934.0,0.014724]
[1771661466141,0.014722,67942.0,67935.0,0.014724]
[1771661466445,0.014722,67943.0,67935.0,0.014724]
[1771661468050,0.014722,67944.0,67935.0,0.014724]
[1771661473252,0.014722,67944.0,67933.0,0.014724]
[1771661473548,0.014722,67942.0,67933.0,0.014724]
[1771661475249,0.029445,67942.0,67933.0,0.014724]
[1771661475750,0.014723,67941.0,67933.0,0.014724]
[1771661478547,0.014722,67942.0,67934.0,0.014724]
[1771661478746,0.014722,67945.0,67935.0,0.014724]
[1771661478947,0.014722,67943.0,67935.0,0.014724]
[1771661479450,0.014722,67943.0,67935.0,0.029448]
[1771661479850,0.029444,67943.0,67935.0,0.029448]
[1771661480150,0.014722,67942.0,67935.0,0.014724]
[1771661480353,0.014723,67941.0,67935.0,0.014724]
[1771661481245,0.014722,67942.0,67936.0,0.014724]
[1771661482558,0.014722,67942.0,67937.0,0.014723]
[1771661482950,0.014723,67941.0,67936.0,0.014724]
[1771661485259,0.014722,67945.0,67938.0,0.014723]
[1771661485449,0.20004136,67944.0,67938.0,0.014723]
[1771661485649,0.20004136,67943.0,67938.0,0.014723]
[1771661485858,0.20004136,67942.0,67938.0,0.014723]
[1771661486068,0.014722,67945.0,67938.0,0.014723]
[1771661486253,0.20003928,67944.0,67938.0,0.014723]
[1771661486454,0.20003928,67943.0,67938.0,0.029446]
[1771661486661,0.20003928,67942.0,67938.0,0.029446]
[1771661486858,0.014722,67945.0,67938.0,0.029446]
[1771661487059,0.20003455,67944.0,67938.0,0.029446]
[1771661487255,0.20003455,67943.0,67940.0,0.014723]
[1771661487456,0.20003455,67942.0,67940.0,0.014723]
[1771661487761,0.014722,67946.0,67941.0,0.014723]
[1771661487962,0.20002878,67945.0,67941.0,0.014723]
[1771661488162,0.20002878,67944.0,67941.0,0.014723]
[1771661488362,0.20002878,67943.0,67941.0,0.014723]
[1771661488566,0.20002878,67942.0,67941.0,0.014723]
[1771661488765,0.20002878,67942.0,67932.0,0.014724]
[1771661489063,0.014722,67946.0,67932.0,0.014724]
[1771661489265,0.20002232,67945.0,67932.0,0.014724]
[1771661489465,0.20002232,67944.0,67932.0,0.014724]
[1771661489764,0.20002232,67943.0,67941.0,0.014723]
[1771661489965,0.014722,67946.0,67941.0,0.014723]
[1771661490166,0.20002024,67945.0,67941.0,0.014723]
[1771661490366,0.20002024,67944.0,67933.0,0.014724]
[1771661490557,0.20002024,67943.0,67933.0,0.014724]
[1771661490757,0.014722,67946.0,67941.0,0.014722]
[1771661490962,0.20001866,67945.0,67941.0,0.014722]
[1771661491163,0.20001866,67944.0,67941.0,0.014722]
[1771661491468,0.20001866,67943.0,67939.0,0.014723]
[1771661491765,0.014721,67946.0,67941.0,0.014722]
[1771661492067,0.20001747,67945.0,67937.0,0.014723]
[1771661492368,0.20001747,67944.0,67941.0,0.014723]
[1771661492664,0.20001747,67943.0,67941.0,0.014723]
[1771661492865,0.014721,67947.0,67941.0,0.014723]
[1771661493067,0.2000156,67946.0,67941.0,0.014723]
[1771661493262,0.2000156,67945.0,67941.0,0.014723]
[1771661493464,0.2000156,67944.0,67941.0,0.014723]
[1771661493664,0.2000156,67943.0,67941.0,0.014723]
[1771661493866,0.014721,67947.0,67941.0,0.014723]
[1771661494068,0.20001523,67946.0,67941.0,0.014723]
[1771661494280,0.20001523,67945.0,67939.0,0.014723]
[1771661494479,0.20001523,67944.0,67939.0,0.014723]
[1771661494682,0.20001523,67943.0,67941.0,0.014722]
[1771661494976,0.014721,67947.0,67941.0,0.014722]
[1771661495179,0.20001566,67946.0,67937.0,0.014723]
[1771661495379,0.20001566,67945.0,67940.0,0.014723]
[1771661495580,0.20001566,67944.0,67940.0,0.014723]
[1771661495881,0.20001566,67943.0,67939.0,0.014723]
[1771661496183,0.20001566,67942.0,67940.0,0.014723]
[1771661496481,0.014721,67947.0,67940.0,0.014723]
[1771661496780,0.20001971,67946.0,67941.0,0.014723]
[1771661496980,0.20001971,67945.0,67941.0,0.014723]
[1771661497182,0.20001971,67944.0,67939.0,0.014723]
[1771661497382,0.20001971,67943.0,67940.0,0.014723]
[1771661497573,0.20001971,67942.0,67941.0,0.014723]
[1771661497973,0.20001971,67946.0,67941.0,0.014723]
[1771661498176,0.20001971,67945.0,67941.0,0.014723]
[1771661498377,0.20001971,67944.0,67941.0,0.014723]
[1771661498577,0.20001971,67943.0,67941.0,0.014723]
[1771661498785,0.20001971,67942.0,67941.0,0.014723]
[1771661499084,0.20001971,67946.0,67941.0,0.014723]
[1771661499384,0.20001971,67945.0,67941.0,0.014723]
[1771661499584,0.20001971,67944.0,67941.0,0.014723]
[1771661499784,0.20001971,67943.0,67941.0,0.014723]
[1771661499986,0.014721,67948.0,67942.0,0.014722]
[1771661500190,0.20003167,67947.0,67942.0,0.014722]
[1771661500379,0.20003167,67946.0,67942.0,0.014722]
[1771661500573,0.20003167,67945.0,67942.0,0.014722]
[1771661500778,0.20003167,67944.0,67942.0,0.014722]
[1771661500978,0.20003167,67943.0,67942.0,0.014722]
[1771661501284,0.21475267,67947.0,67937.0,0.029446]
[1771661501588,0.20003167,67946.0,67938.0,0.014723]
[1771661502285,0.014722,67945.0,67938.0,0.014723]
[1771661502485,0.20003167,67944.0,67938.0,0.014723]
[1771661503790,0.21475367,67944.0,67938.0,0.014723]
[1771661503982,0.20003167,67943.0,67938.0,0.014723]
[1771661506283,0.21475367,67943.0,67938.0,0.014723]
[1771661506486,0.20003167,67942.0,67938.0,0.014723]
[1771661509990,0.014722,67944.0,67938.0,0.014723]
[1771661510182,0.20016576,67943.0,67938.0,0.014723]
[1771661510383,0.20016576,67942.0,67939.0,0.014723]
[1771661510584,0.20016576,67941.0,67939.0,0.014723]
[1771661510790,0.014722,67944.0,67939.0,0.014723]
[1771661510993,0.20136993,67943.0,67939.0,0.014723]
[1771661511291,0.20136993,67942.0,67941.0,0.014723]
[1771661513294,9.3e-07,67942.0,67941.0,0.014723]
[1771661513496,0.014721,67948.0,67943.0,0.014722]
[1771661513992,0.014721,67950.0,67943.0,0.014722]
[1771661513993,0.014721,67949.0,67943.0,0.014722]
[1771661514383,0.014721,67950.0,67943.0,0.014722]
[1771661514884,0.15583779,67951.0,67943.0,0.014722]
[1771661517300,0.014721,67950.0,67939.0,0.014723]
[1771661518297,0.014721,67948.0,67939.0,0.014723]
[1771661518502,0.029442,67948.0,67939.0,0.014723]
[1771661520299,0.014721,67947.0,67939.0,0.014723]
[1771661521400,0.014721,67947.0,67938.0,0.014723]
[1771661521600,0.014722,67946.0,67938.0,0.014723]
[1771661523201,0.014722,67945.0,67938.0,0.014723]
[1771661528616,0.02,67945.0,67943.0,0.014722]
[1771661528905,0.014721,67950.0,67943.0,0.014722]
[1771661529309,0.01472,67951.0,67944.0,0.014722]
[1771661529509,0.01472,67952.0,67944.0,0.014722]
[1771661529812,0.20027632,67951.0,67946.0,0.014721]
[1771661530106,0.014719,67957.0,67941.0,0.014722]
[1771661530294,0.014719,67958.0,67948.0,0.014721]
[1771661530295,0.014719,67956.0,67948.0,0.014721]
[1771661531003,0.58502182,67967.0,67949.0,0.014721]
[1771661531201,0.14295528,67967.0,67949.0,0.014721]
[1771661531403,0.014719,67957.0,67949.0,0.014721]
[1771661532200,0.014719,67959.0,67949.0,0.014721]
[1771661532407,0.014719,67957.0,67949.0,0.014721]
[1771661535113,0.014719,67958.0,67950.0,0.014721]
[1771661535312,0.014719,67958.0,67936.0,0.26467622]
[1771661535610,0.01472,67955.0,67946.0,0.014721]
[1771661536003,0.01472,67955.0,67944.0,0.014722]
[1771661536004,0.01472,67955.0,67947.0,0.014721]
[1771661536404,0.01472,67952.0,67944.0,0.014722]
[1771661536608,0.01472,67953.0,67945.0,0.014722]
[1771661536804,0.01472,67953.0,67944.0,0.014722]
[1771661537211,0.01472,67952.0,67944.0,0.014722]
[1771661537515,0.01472,67952.0,67943.0,0.014722]
[1771661537700,0.01472,67952.0,67944.0,0.014722]
[1771661539411,0.014721,67951.0,67944.0,0.014722]
[1771661540310,0.014721,67951.0,67943.0,0.014722]
[1771661540311,0.014721,67950.0,67943.0,0.014722]
[1771661540617,0.014721,67949.0,67943.0,0.014722]
[1771661541401,0.014721,67950.0,67945.0,0.014722]
[1771661541616,0.01472,67951.0,67945.0,0.014722]
[1771661543012,0.01472,67951.0,67945.0,0.029444]
[1771661543314,0.01472,67951.0,67946.0,0.014721]
[1771661543713,0.01472,67952.0,67946.0,0.014721]
[1771661547322,0.01472,67955.0,67946.0,0.014721]
[1771661548323,0.01472,67955.0,67948.0,0.014721]
[1771661548517,0.014719,67956.0,67948.0,0.014721]
[1771661549821,0.014719,67959.0,67948.0,0.014721]
[1771661549822,0.014719,67957.0,67948.0,0.014721]
[1771661550021,0.014719,67957.0,67948.0,0.029442]
[1771661550431,0.014719,67956.0,67948.0,0.029442]
[1771661551231,0.01472,67955.0,67947.0,0.014721]
[1771661553326,0.01472,67953.0,67945.0,0.014722]
[1771661554232,0.01472,67953.0,67945.0,0.029444]
[1771661556635,0.04944,67953.0,67945.0,0.029444]
[1771661557335,0.04944,67953.0,67946.0,0.014721]
[1771661557930,0.01472,67952.0,67946.0,0.014721]
[1771661573433,0.014718,67964.0,67945.0,0.014722]
[1771661573640,0.014719,67956.0,67950.0,0.014721]
[1771661574444,0.014719,67957.0,67950.0,0.014721]
[1771661575645,0.014719,67956.0,67949.0,0.014721]
[1771661577045,0.014719,67956.0,67950.0,0.00096]
[1771661577232,0.014719,67956.0,67949.0,0.014721]
[1771661578450,0.014719,67957.0,67949.0,0.014721]
[1771661578946,0.014719,67956.0,67949.0,0.014721]
[1771661579946,0.20148409,67955.0,67949.0,0.014721]
[1771661580146,0.20148409,67954.0,67949.0,0.014721]
[1771661580346,0.20148409,67953.0,67949.0,0.014721]
[1771661580541,0.16257896,67952.0,67949.0,0.014721]
[1771661580748,0.014719,67957.0,67950.0,0.014721]
[1771661582548,0.014719,67957.0,67947.0,0.014721]
[1771661582549,0.014719,67957.0,67949.0,0.014721]
[1771661584852,0.014719,67957.0,67949.0,0.013951]
[1771661585243,0.014719,67957.0,67949.0,0.013351]
[1771661586352,0.014719,67957.0,67949.0,0.012341]
[1771661587550,0.014719,67957.0,67949.0,0.009351]
[1771661588251,0.014719,67957.0,67949.0,0.008611]
[1771661589056,0.014719,67957.0,67951.0,0.00096]
[1771661589353,0.014719,67956.0,67948.0,0.014721]
[1771661594549,0.01472,67955.0,67945.0,0.014722]
[1771661594758,0.01472,67954.0,67946.0,0.014721]
[1771661595559,0.01472,67954.0,67947.0,0.014721]
[1771661595859,0.01472,67954.0,67947.0,0.014221]
[1771661596250,0.01472,67954.0,67946.0,0.014721]
[1771661596448,0.01472,67954.0,67947.0,0.014721]
[1771661596658,0.01472,67953.0,67945.0,0.014722]
[1771661596959,0.014719,67956.0,67943.0,0.014722]
[1771661596960,0.014721,67951.0,67943.0,0.014722]
[1771661597356,0.014721,67950.0,67943.0,0.014722]
[1771661597553,0.014721,67950.0,67944.0,0.014722]
[1771661599169,0.029442,67950.0,67944.0,0.014722]
[1771661599353,0.014721,67950.0,67944.0,0.014722]
[1771661600261,0.014721,67949.0,67944.0,0.014722]
[1771661601362,0.01472,67952.0,67946.0,0.014721]
[1771661601563,0.20053762,67951.0,67946.0,0.014721]
[1771661601860,0.01472,67952.0,67946.0,0.014721]
[1771661602062,0.20053762,67951.0,67946.0,0.014721]
[1771661602254,0.01472,67951.0,67946.0,0.014721]
[1771661603066,0.01472,67952.0,67947.0,0.014721]
[1771661603254,0.20055209,67951.0,67947.0,0.014721]
[1771661603555,0.01472,67952.0,67947.0,0.014721]
[1771661603855,0.20055205,67951.0,67947.0,0.014721]
[1771661604163,0.01472,67952.0,67947.0,0.014721]
[1771661604356,0.20055676,67951.0,67947.0,0.014721]
[1771661604550,0.01472,67952.0,67947.0,0.014721]
[1771661604754,0.20055676,67951.0,67947.0,0.014721]
[1771661604962,0.01472,67952.0,67947.0,0.014721]
[1771661605163,0.20055676,67951.0,67947.0,0.014721]
[1771661605364,0.01472,67954.0,67949.0,0.014721]
[1771661605565,0.20055646,67953.0,67946.0,0.014721]
[1771661605763,0.20055646,67952.0,67942.0,0.014722]
[1771661605963,0.20055646,67951.0,67942.0,0.014722]
[1771661606263,0.01472,67954.0,67942.0,0.014722]
[1771661606466,0.20055617,67953.0,67942.0,0.014722]
[1771661606759,0.20055617,67952.0,67948.0,0.014721]
[1771661606965,0.20055617,67951.0,67948.0,0.029442]
[1771661607164,0.01472,67953.0,67948.0,0.014721]
[1771661607364,0.20097889,67952.0,67948.0,0.029442]
[1771661607563,0.20097889,67951.0,67948.0,0.014721]
[1771661607863,0.01472,67953.0,67948.0,0.014721]
[1771661608065,0.01472,67953.0,67948.0,0.029442]
[1771661608066,0.20097889,67952.0,67948.0,0.029442]
[1771661608259,0.20097889,67951.0,67948.0,0.029442]
[1771661608460,0.01472,67953.0,67948.0,0.029442]
[1771661608660,0.20097865,67952.0,67948.0,0.029442]
[1771661608960,0.20097865,67951.0,67948.0,0.029442]
[1771661609165,0.01472,67954.0,67948.0,0.029442]
[1771661609366,0.20097842,67953.0,67948.0,0.029442]
[1771661609665,0.20097842,67952.0,67949.0,0.014721]
[1771661609860,0.20097842,67951.0,67948.0,0.014721]
[1771661610067,0.01472,67954.0,67948.0,0.014721]
[1771661610367,0.20097842,67953.0,67948.0,0.014721]
[1771661610568,0.20097842,67952.0,67949.0,0.014721]
[1771661610758,0.20097842,67951.0,67949.0,0.014721]
[1771661610957,0.01472,67954.0,67949.0,0.014721]
[1771661611158,0.20097847,67953.0,67949.0,0.014721]
[1771661611362,0.20097847,67952.0,67950.0,0.014721]
[1771661611562,0.20097847,67951.0,67950.0,0.014721]
[1771661614371,0.20097847,67951.0,67949.0,0.014721]
[1771661614570,0.02944,67955.0,67949.0,0.014721]
[1771661614773,0.20097861,67954.0,67949.0,0.014721]
[1771661615069,0.20097861,67953.0,67949.0,0.014721]
[1771661615271,0.20097861,67953.0,67948.0,0.014721]
[1771661615272,0.20097861,67952.0,67945.0,0.014721]
[1771661615570,0.20097861,67951.0,67949.0,0.014721]
[1771661615773,0.02944,67955.0,67949.0,0.014721]
[1771661615962,0.20097877,67954.0,67949.0,0.014721]
[1771661616271,0.20097877,67953.0,67949.0,0.014721]
[1771661616473,0.20097877,67952.0,67945.0,0.014721]
[1771661616771,0.20097877,67951.0,67949.0,0.014721]
[1771661616971,0.02944,67955.0,67949.0,0.014721]
[1771661617172,0.20097897,67954.0,67949.0,0.014721]
[1771661617471,0.20097897,67953.0,67949.0,0.014721]
[1771661617672,0.20097897,67952.0,67949.0,0.014721]
[1771661617863,0.20097897,67951.0,67949.0,0.014721]
[1771661618067,0.01472,67955.0,67949.0,0.014721]
[1771661618274,0.20097923,67954.0,67949.0,0.029442]
[1771661618471,0.20097923,67953.0,67949.0,0.029442]
[1771661618773,0.20097923,67952.0,67949.0,0.029442]
[1771661619070,0.20097923,67951.0,67950.0,0.014721]
[1771661619571,0.20097923,67954.0,67950.0,0.014721]
[1771661619776,0.20097923,67953.0,67950.0,0.014721]
[1771661619978,0.20097923,67952.0,67950.0,0.014721]
[1771661620277,0.20097923,67951.0,67950.0,0.014721]
[1771661620481,0.20097923,67954.0,67950.0,0.014721]
[1771661620681,0.20097923,67953.0,67950.0,0.014721]
[1771661620866,0.20097923,67952.0,67950.0,0.014721]
[1771661621066,0.20097923,67951.0,67950.0,0.014721]
[1771661621268,0.20097923,67954.0,67950.0,0.014721]
[1771661622782,0.20097923,67954.0,67948.0,0.014721]
[1771661626288,0.21569923,67954.0,67948.0,0.014721]
[1771661626486,0.20097923,67953.0,67948.0,0.014721]
[1771661630294,0.20097923,67953.0,67949.0,0.014721]
[1771661630792,0.04048996,67953.0,67949.0,0.014721]
[1771661631090,0.01472,67954.0,67949.0,0.014721]
[1771661631891,0.01472,67955.0,67949.0,0.014721]
[1771661633293,0.014719,67956.0,67949.0,0.029442]
[1771661633496,0.014719,67956.0,67950.0,0.014721]
[1771661633896,0.014719,67957.0,67950.0,0.014721]
[1771661637399,0.014719,67957.0,67947.0,0.014721]
[1771661638300,0.01472,67955.0,67947.0,0.014721]
[1771661639305,0.01472,67954.0,67947.0,0.014721]
[1771661641202,0.02944,67954.0,67947.0,0.014721]
[1771661641394,0.01472,67954.0,67947.0,0.014721]
[1771661641594,0.02944,67954.0,67947.0,0.014721]
[1771661642405,0.01472,67954.0,67947.0,0.014721]
[1771661642799,0.19999032,67953.0,67947.0,0.014721]
[1771661642999,0.19999032,67952.0,67947.0,0.014721]
[1771661643199,0.19999032,67951.0,67947.0,0.014721]
[1771661643396,0.014721,67949.0,67921.0,0.014727]
[1771661643603,0.01472,67951.0,67936.0,0.014724]
[1771661643803,0.20193195,67950.0,67933.0,0.21557342]
[1771661644004,0.014721,67950.0,67936.0,0.014724]
[1771661644304,0.014721,67950.0,67944.0,0.029444]
[1771661645503,0.01472,67953.0,67948.0,0.014721]
[1771661645703,0.20212261,67952.0,67947.0,0.014721]
[1771661645904,0.20212261,67951.0,67948.0,0.014721]
[1771661646204,0.20212261,67950.0,67948.0,0.014721]
[1771661646404,0.01472,67952.0,67947.0,0.014721]
[1771661646604,0.20211879,67951.0,67947.0,0.014721]
[1771661646797,0.20211879,67950.0,67947.0,0.014721]
[1771661646998,0.01472,67951.0,67947.0,0.014721]
[1771661647298,0.20211879,67950.0,67948.0,0.014721]
[1771661647503,0.01472,67953.0,67948.0,0.014721]
[1771661647704,0.20211551,67952.0,67948.0,0.014721]
[1771661648001,0.20211551,67951.0,67948.0,0.014721]
[1771661648203,0.20211551,67950.0,67948.0,0.014721]
[1771661648403,0.01472,67953.0,67948.0,0.014721]
[1771661648598,0.20211294,67952.0,67948.0,0.014721]
[1771661648804,0.20211294,67951.0,67948.0,0.014721]
[1771661649004,0.20211294,67950.0,67948.0,0.014721]
[1771661649206,0.01472,67953.0,67948.0,0.014721]
[1771661649506,0.20211059,67952.0,67950.0,0.014721]
[1771661649706,0.20211059,67951.0,67950.0,0.014721]
[1771661650704,5.9e-07,67951.0,67950.0,0.014721]
[1771661650904,0.014719,67957.0,67952.0,0.01472]
[1771661651403,0.014719,67958.0,67952.0,0.01472]
[1771661652614,0.014719,67959.0,67952.0,0.01472]
[1771661653014,0.014718,67962.0,67954.0,0.01472]
[1771661653212,0.014718,67962.0,67955.0,0.01472]
[1771661653608,0.014718,67961.0,67954.0,0.01472]
[1771661655319,0.014719,67959.0,67950.0,0.014721]
[1771661656319,0.014719,67957.0,67950.0,0.014721]
[1771661658416,0.029438,67957.0,67950.0,0.014721]
[1771661659323,0.014719,67956.0,67949.0,0.014721]
[1771661661316,0.014719,67957.0,67950.0,0.014721]
[1771661664220,0.014719,67957.0,67948.0,0.029442]
[1771661664622,0.014719,67956.0,67948.0,0.029442]
[1771661665322,0.014719,67956.0,67949.0,0.014721]
[1771661665524,0.014719,67957.0,67949.0,0.014721]
[1771661666516,0.014719,67956.0,67949.0,0.014721]
[1771661667725,0.014719,67957.0,67950.0,0.014721]
[1771661667926,0.014719,67957.0,67948.0,0.014721]
[1771661667927,0.01472,67956.0,67948.0,0.014721]
[1771661669218,0.01472,67955.0,67948.0,0.014721]
[1771661671330,0.014719,67956.0,67949.0,0.014721]
[1771661676328,0.014719,67956.0,67948.0,0.014721]
[1771661677329,0.029439,67956.0,67948.0,0.014721]
[1771661681225,0.014719,67956.0,67948.0,0.014721]
[1771661681430,0.014719,67956.0,67949.0,0.014721]
[1771661686531,0.20017555,67955.0,67949.0,0.014721]
[1771661686832,0.20017555,67954.0,67949.0,0.014721]
[1771661687031,0.20017555,67953.0,67949.0,0.014721]
[1771661687331,0.014719,67956.0,67949.0,0.014721]
[1771661687525,0.20017852,67955.0,67949.0,0.014721]
[1771661687726,0.20017852,67954.0,67949.0,0.014721]
[1771661687925,0.20017852,67953.0,67949.0,0.014721]
[1771661688227,0.014719,67956.0,67949.0,0.014721]
[1771661688428,0.20018186,67955.0,67949.0,0.014721]
[1771661688623,0.20018186,67954.0,67949.0,0.014721]
[1771661688825,0.20018186,67953.0,67949.0,0.014721]
[1771661689124,0.01472,67955.0,67949.0,0.014721]
[1771661689424,0.200186,67954.0,67949.0,0.014721]
[1771661689625,0.200186,67953.0,67949.0,0.014721]
[1771661689926,0.01472,67955.0,67949.0,0.014721]
[1771661690125,0.200186,67954.0,67949.0,0.014721]
[1771661690334,0.200186,67953.0,67949.0,0.014721]
[1771661690633,0.01472,67955.0,67949.0,0.014721]
[1771661690833,0.20274634,67954.0,67949.0,0.014721]
[1771661691029,0.20274634,67953.0,67949.0,0.014721]
[1771661691230,0.01472,67955.0,67949.0,0.014721]
[1771661691439,0.20275213,67954.0,67949.0,0.014721]
[1771661691732,0.20275213,67953.0,67949.0,0.014721]
[1771661691934,0.01472,67955.0,67949.0,0.014721]
[1771661692134,0.20275213,67954.0,67949.0,0.014721]
[1771661692326,0.20275213,67953.0,67949.0,0.014721]
[1771661692527,0.01472,67955.0,67949.0,0.014721]
[1771661692728,0.20275914,67954.0,67949.0,0.014721]
[1771661692947,0.20275914,67953.0,67949.0,0.014721]
[1771661693127,0.01472,67955.0,67949.0,0.014721]
[1771661693329,0.2027679,67954.0,67949.0,0.014721]
[1771661693532,0.2027679,67953.0,67949.0,0.014721]
[1771661693836,0.01472,67955.0,67949.0,0.014721]
[1771661694033,0.2027679,67954.0,67949.0,0.015681]
[1771661694335,0.2027679,67953.0,67949.0,0.014721]
[1771661694534,0.01472,67955.0,67949.0,0.014721]
[1771661694735,0.20278002,67954.0,67949.0,0.014721]
[1771661695032,0.20278002,67953.0,67949.0,0.014721]
[1771661695226,0.20280101,67952.0,67949.0,0.014721]
[1771661695428,0.01472,67955.0,67949.0,0.014721]
[1771661695627,0.20280129,67954.0,67949.0,0.014721]
[1771661695832,0.20280129,67953.0,67949.0,0.014721]
[1771661696034,0.20280129,67952.0,67949.0,0.014721]
[1771661696234,0.01472,67955.0,67949.0,0.014721]
[1771661696535,0.20167684,67954.0,67949.0,0.014721]
[1771661696730,0.20167684,67953.0,67949.0,0.014721]
[1771661696930,0.20167684,67952.0,67949.0,0.014721]
[1771661697129,0.01472,67955.0,67949.0,0.014721]
[1771661697431,0.20167858,67954.0,67950.0,0.01472]
[1771661697629,0.20167858,67953.0,67950.0,0.01472]
[1771661697834,0.20167858,67952.0,67951.0,0.01472]
[1771661700443,0.20167858,67952.0,67940.0,0.0725171]
[1771661700741,0.01472,67955.0,67941.0,0.014722]
[1771661700931,0.20168653,67954.0,67942.0,0.014722]
[1771661701130,0.20168653,67953.0,67950.0,0.01472]
[1771661701334,0.20168653,67952.0,67950.0,0.01472]
[1771661701534,0.014719,67956.0,67950.0,0.01472]
[1771661701735,0.20168157,67955.0,67942.0,0.014722]
[1771661702032,0.20168157,67954.0,67951.0,0.01472]
[1771661702232,0.014719,67956.0,67951.0,0.01472]
[1771661702233,0.20168157,67953.0,67951.0,0.01472]
[1771661702449,0.20168157,67952.0,67951.0,0.01472]
[1771661706140,0.20168157,67952.0,67950.0,0.014721]
[1771661706347,0.014719,67957.0,67943.0,0.014722]
[1771661706538,0.2016688,67956.0,67943.0,0.014722]
[1771661706738,0.2016688,67955.0,67943.0,0.014722]
[1771661706936,0.2016688,67954.0,67943.0,0.014722]
[1771661707238,0.2016688,67953.0,67952.0,0.01472]
[1771661707742,0.014718,67961.0,67955.0,0.014719]
[1771661708449,0.014718,67961.0,67954.0,0.01472]
[1771661708749,0.014718,67961.0,67953.0,0.01472]
[1771661709147,0.014718,67961.0,67954.0,0.01472]
[1771661712052,0.014718,67961.0,67955.0,0.0008]
[1771661712245,0.014718,67961.0,67954.0,0.01472]
[1771661714350,0.014719,67959.0,67950.0,0.014721]
[1771661715151,0.014719,67959.0,67951.0,0.01472]
[1771661715852,0.014719,67958.0,67951.0,0.01472]
[1771661716153,0.22457854,67961.0,67944.0,0.014722]
[1771661716351,0.01472,67955.0,67947.0,0.014721]
[1771661717252,0.01472,67955.0,67948.0,0.014721]
[1771661721657,0.02944,67955.0,67948.0,0.014721]